fUST/lending_fUST_20250724
["ID","MTS","AMOUNT","RATE_DAILY","PERIOD"]
[374476906,1753315853988,-460.0,0.00021095,2]
[374476907,1753315853998,-460.0,0.00021095,2]
[374476908,1753315854011,-460.0,0.00021095,2]
[374476909,1753315854021,-369.58098645,0.00021095,2]
[374476910,1753315854031,-460.0,0.00021095,2]
[374476911,1753315854041,-460.0,0.00021095,2]
[374476912,1753315854051,-460.0,0.00021095,2]
[374476913,1753315854060,-591.07,0.00021095,2]
[374476914,1753315854070,-314.28320244,0.00021095,2]
[374476915,1753315854080,-460.0,0.00021095,2]
[374476916,1753315854090,-460.0,0.00021095,2]
[374476917,1753315854099,-460.0,0.00021095,2]
[374476918,1753315854109,-460.0,0.00021095,2]
[374476919,1753315854119,-460.0,0.00021095,2]
[374476920,1753315854129,-460.0,0.00021095,2]
[374476921,1753315854139,-460.0,0.00021095,2]
[374476922,1753315854148,-460.0,0.00021095,2]
[374476923,1753315854158,-501.96,0.00021095,2]
[374476924,1753315854168,-460.0,0.00021095,2]
[374476925,1753315854178,-1169.44,0.00021095,2]
[374476926,1753315854191,-460.0,0.00021095,2]
[374476927,1753315854202,-460.0,0.00021095,2]
[374476928,1753315854211,-460.0,0.00021095,2]
[374476929,1753315854221,-472.6978922,0.00021095,2]
[374476930,1753315854231,-460.0,0.00021095,2]
[374476931,1753315854241,-460.0,0.00021095,2]
[374476932,1753315854252,-460.0,0.00021095,2]
[374476933,1753315854263,-460.0,0.00021095,2]
[374476934,1753315854272,-3248.67,0.00021095,2]
[374476935,1753315854282,-460.0,0.00021095,2]
[374476936,1753315854292,-460.0,0.00021095,2]
[374476937,1753315854301,-579.41,0.00021095,2]
[374476938,1753315854312,-460.0,0.00021095,2]
[374476939,1753315854322,-3509.86,0.00021095,2]
[374476940,1753315854333,-1815.77,0.00021095,2]
[374476941,1753315854344,-460.0,0.00021095,2]
[374476942,1753315854355,-460.0,0.00021095,2]
[374476943,1753315854365,-460.0,0.00021095,2]
[374476944,1753315854374,-606.49,0.00021095,2]
[374476945,1753315854384,-460.0,0.00021095,2]
[374476946,1753315854393,-460.0,0.00021095,2]
[374476947,1753315854402,-460.0,0.00021095,2]
[374476948,1753315854412,-645.58,0.00021095,2]
[374476949,1753315854421,-1430.55,0.00021095,2]
[374476950,1753315854431,-1596.33,0.00021095,2]
[374476951,1753315854440,-460.0,0.00021095,2]
[374476952,1753315854449,-460.0,0.00021095,2]
[374476953,1753315854459,-460.0,0.00021095,2]
[374476954,1753315854468,-460.0,0.00021095,2]
[374476955,1753315854478,-460.0,0.00021095,2]
[374476956,1753315854488,-1015.54,0.00021095,2]
[374476957,1753315854497,-460.0,0.00021095,2]
[374476958,1753315854508,-1069.89,0.00021095,2]
[374476959,1753315854520,-674.14,0.00021095,2]
[374476960,1753315854530,-1074.8,0.00021095,2]
[374476961,1753315854539,-460.0,0.00021095,2]
[374476962,1753315854549,-592.26,0.00021095,2]
[374476963,1753315854558,-460.0,0.00021095,2]
[374476964,1753315854568,-460.0,0.00021095,2]
[374476965,1753315854577,-460.0,0.00021095,2]
[374476966,1753315854586,-460.0,0.00021095,2]
[374476967,1753315854595,-460.0,0.00021095,2]
[374476968,1753315854605,-1504.83,0.00021095,2]
[374476969,1753315854615,-460.0,0.00021095,2]
[374476970,1753315854624,-828.07,0.00021095,2]
[374476971,1753315854633,-500.0,0.0002111,2]
[374476972,1753315854643,-500.30675843,0.0002111,2]
[374476973,1753315854652,-500.0,0.0002111,2]
[374476974,1753315854662,-500.0,0.0002111,2]
[374476975,1753315854671,-500.0,0.0002111,2]
[374476976,1753315854681,-500.0,0.00021116,2]
[374476977,1753315854691,-5451.73971166,0.00021338,2]
[374476978,1753315854700,-460.0,0.00021369,2]
[374476979,1753315854710,-460.0,0.00021369,2]
[374476980,1753315854720,-729.98,0.00021369,2]
[374476981,1753315854729,-460.0,0.00021369,2]
[374476982,1753315854739,-460.0,0.00021369,2]
[374476983,1753315854748,-460.0,0.00021369,2]
[374476984,1753315854757,-460.0,0.00021369,2]
[374476985,1753315854767,-435.2613308,0.00021369,2]
[374476986,1753315854776,-624.26,0.00021369,2]
[374476987,1753315854786,-460.0,0.00021369,2]
[374476988,1753315854795,-460.0,0.00021369,2]
[374476989,1753315854804,-460.0,0.00021369,2]
[374476990,1753315854814,-541.16,0.00021369,2]
[374476991,1753315854823,-967.78,0.00021369,2]
[374476992,1753315854832,-460.0,0.00021369,2]
[374476993,1753315854842,-460.0,0.00021369,2]
[374476994,1753315854852,-401.97474397,0.00021369,2]
[374476995,1753315854862,-460.0,0.00021369,2]
[374476996,1753315854872,-460.0,0.00021369,2]
[374476997,1753315854882,-460.0,0.00021369,2]
[374476998,1753315854891,-460.0,0.00021369,2]
[374476999,1753315854901,-460.0,0.00021369,2]
[374477000,1753315854911,-488.81661577,0.00021369,2]
[374477001,1753315854921,-460.0,0.00021369,2]
[374477002,1753315854931,-591.07,0.00021369,2]
[374477003,1753315854941,-460.0,0.00021369,2]
[374477004,1753315854951,-460.0,0.00021369,2]
[374477005,1753315854961,-460.0,0.00021369,2]
[374477006,1753315854970,-189.64200099,0.00021369,2]
[374477007,1753315854981,-460.0,0.00021369,2]
[374477008,1753315854992,-460.0,0.00021369,2]
[374477009,1753315855003,-460.0,0.00021369,2]
[374477010,1753315855018,-460.0,0.00021369,2]
[374477011,1753315855027,-501.96,0.00021369,2]
[374477012,1753315855037,-460.0,0.00021369,2]
[374477013,1753315855046,-1169.44,0.00021369,2]
[374477014,1753315855058,-460.0,0.00021369,2]
[374477015,1753315855068,-460.0,0.00021369,2]
[374477016,1753315855077,-460.0,0.00021369,2]
[374477017,1753315855087,-460.0,0.00021369,2]
[374477018,1753315855097,-460.0,0.00021369,2]
[374477019,1753315855106,-460.0,0.00021369,2]
[374477020,1753315855116,-3248.67,0.00021369,2]
[374477021,1753315855125,-460.0,0.00021369,2]
[374477022,1753315855134,-555.00201029,0.00021369,2]
[374477023,1753315855144,-579.41,0.00021369,2]
[374477024,1753315855153,-460.0,0.00021369,2]
[374477025,1753315855163,-3509.86,0.00021369,2]
[374477026,1753315855172,-1815.77,0.00021369,2]
[374477027,1753315855182,-460.0,0.00021369,2]
[374477028,1753315855192,-460.0,0.00021369,2]
[374477029,1753315855201,-460.0,0.00021369,2]
[374477030,1753315855210,-606.49,0.00021369,2]
[374477031,1753315855220,-460.0,0.00021369,2]
[374477032,1753315855230,-460.0,0.00021369,2]
[374477033,1753315855239,-460.0,0.00021369,2]
[374477034,1753315855248,-645.58,0.00021369,2]
[374477035,1753315855257,-1430.55,0.00021369,2]
[374477036,1753315855267,-1596.33,0.00021369,2]
[374477037,1753315855276,-460.0,0.00021369,2]
[374477038,1753315855286,-460.0,0.00021369,2]
[374477039,1753315855295,-563.03834934,0.00021369,2]
[374477040,1753315855304,-460.0,0.00021369,2]
[374477041,1753315855314,-460.0,0.00021369,2]
[374477042,1753315855324,-1015.54,0.00021369,2]
[374477043,1753315855333,-460.0,0.00021369,2]
[374477044,1753315855343,-1069.89,0.00021369,2]
[374477045,1753315855352,-674.14,0.00021369,2]
[374477046,1753315855364,-1074.8,0.00021369,2]
[374477047,1753315855377,-460.0,0.00021369,2]
[374477048,1753315855466,-460.0,0.00021369,2]
[374477049,1753315855483,-460.0,0.00021369,2]
[374477050,1753315855493,-460.0,0.00021369,2]
[374477051,1753315855502,-460.0,0.00021369,2]
[374477052,1753315855512,-460.0,0.00021369,2]
[374477053,1753315855521,-1504.83,0.00021369,2]
[374477054,1753315855531,-236.41699781,0.00021369,2]
[374477055,1753315855540,-828.07,0.00021369,2]
[374477056,1753315855550,-540.84898244,0.00021404,2]
[374477057,1753315855559,-407.47396417,0.00021404,2]
[374477058,1753315855568,-503.6987245,0.00021404,2]
[374477059,1753315855578,-1000.0,0.00021441,2]
[374477060,1753315855587,-500.0,0.00021442,2]
[374477061,1753315855597,-565.49105121,0.00021484,2]
[374477062,1753315855607,-504.01872942,0.00021493,2]
[374477063,1753315855617,-3000.0,0.000215,2]
[374477064,1753315855627,-3671.761104,0.0002151,2]
[374477065,1753315855636,-500.0,0.00021511,2]
[374477066,1753315855646,-500.0,0.00021511,2]
[374477067,1753315855656,-500.0,0.00021511,2]
[374477068,1753315855665,-500.0,0.00021511,2]
[374477069,1753315855675,-500.0,0.00021511,2]
[374477070,1753315855684,-500.0,0.00021511,2]
[374477071,1753315855694,-500.0,0.00021511,2]
[374477072,1753315855704,-500.0,0.00021533,2]
[374477073,1753315855713,-503.67601991,0.00021533,2]
[374477074,1753315855723,-500.78111544,0.00021631,2]
[374477075,1753315855733,-165.576631,0.00021638,2]
[374477076,1753315855743,-165.576631,0.00021638,2]
[374477077,1753315855752,-151.0,0.00021638,2]
[374477078,1753315855762,-151.0,0.00021638,2]
[374477079,1753315855771,-460.0,0.00021643,2]
[374477080,1753315855781,-411.541725,0.00021643,2]
[374477081,1753315855790,-411.541725,0.00021643,2]
[374477082,1753315855799,-460.0,0.00021643,2]
[374477083,1753315855810,-729.98,0.00021643,2]
[374477084,1753315855819,-502.04755247,0.00021643,2]
[374477085,1753315855829,-460.0,0.00021643,2]
[374477086,1753315855838,-460.0,0.00021643,2]
[374477087,1753315855847,-460.0,0.00021643,2]
[374477088,1753315855857,-624.26,0.00021643,2]
[374477089,1753315855867,-460.0,0.00021643,2]
[374477090,1753315855876,-460.0,0.00021643,2]
[374477091,1753315855886,-460.0,0.00021643,2]
[374477092,1753315855896,-541.16,0.00021643,2]
[374477093,1753315855906,-967.78,0.00021643,2]
[374477094,1753315855915,-460.0,0.00021643,2]
[374477095,1753315855924,-460.0,0.00021643,2]
[374477096,1753315855934,-460.0,0.00021643,2]
[374477097,1753315855944,-460.0,0.00021643,2]
[374477098,1753315855955,-460.0,0.00021643,2]
[374477099,1753315855964,-460.0,0.00021643,2]
[374477100,1753315855974,-460.0,0.00021643,2]
[374477101,1753315855983,-460.0,0.00021643,2]
[374477102,1753315855993,-591.07,0.00021643,2]
[374477103,1753315856002,-460.0,0.00021643,2]
[374477104,1753315856017,-237.08,0.00021643,2]
[374477105,1753315856027,-460.0,0.00021643,2]
[374477106,1753315856036,-460.0,0.00021643,2]
[374477107,1753315856046,-267.31435184,0.00021643,2]
[374477108,1753315856059,-460.0,0.00021643,2]
[374477109,1753315856068,-501.96,0.00021643,2]
[374477110,1753315856077,-460.0,0.00021643,2]
[374477111,1753315856087,-1169.44,0.00021643,2]
[374477112,1753315856096,-460.0,0.00021643,2]
[374477113,1753315856107,-412.74,0.00021643,2]
[374477114,1753315856116,-460.0,0.00021643,2]
[374477115,1753315856126,-460.0,0.00021643,2]
[374477116,1753315856135,-460.0,0.00021643,2]
[374477117,1753315856145,-3248.67,0.00021643,2]
[374477118,1753315856155,-460.0,0.00021643,2]
[374477119,1753315856164,-579.41,0.00021643,2]
[374477120,1753315856173,-3509.86,0.00021643,2]
[374477121,1753315856183,-1815.77,0.00021643,2]
[374477122,1753315856193,-460.0,0.00021643,2]
[374477123,1753315856202,-460.0,0.00021643,2]
[374477124,1753315856212,-460.0,0.00021643,2]
[374477125,1753315856222,-606.49,0.00021643,2]
[374477126,1753315856231,-460.0,0.00021643,2]
[374477127,1753315856240,-460.0,0.00021643,2]
[374477128,1753315856249,-306.02,0.00021643,2]
[374477129,1753315856259,-645.58,0.00021643,2]
[374477130,1753315856268,-1430.55,0.00021643,2]
[374477131,1753315856277,-1596.33,0.00021643,2]
[374477132,1753315856287,-460.0,0.00021643,2]
[374477133,1753315856298,-460.0,0.00021643,2]
[374477134,1753315856307,-460.0,0.00021643,2]
[374477135,1753315856317,-460.0,0.00021643,2]
[374477136,1753315856327,-1015.54,0.00021643,2]
[374477137,1753315856336,-460.0,0.00021643,2]
[374477138,1753315856346,-1069.89,0.00021643,2]
[374477139,1753315856357,-674.14,0.00021643,2]
[374477140,1753315856367,-1074.8,0.00021643,2]
[374477141,1753315856376,-357.69092524,0.00021643,2]
[374477142,1753315856386,-314.24537845,0.00021643,2]
[374477143,1753315856395,-460.0,0.00021643,2]
[374477144,1753315856405,-460.0,0.00021643,2]
[374477145,1753315856416,-460.0,0.00021643,2]
[374477146,1753315856426,-1504.83,0.00021643,2]
[374477147,1753315856436,-828.07,0.00021643,2]
[374477148,1753315856446,-332.1806871,0.00021664,2]
[374477149,1753315856457,-151.0,0.00021739,2]
[374477150,1753315856467,-158.853062,0.00021739,2]
[374477151,1753315856477,-158.853062,0.00021739,2]
[374477152,1753315856488,-151.0,0.00021739,2]
[374477153,1753315856498,-151.0,0.00021739,2]
[374477154,1753315856508,-460.0,0.00021917,2]
[374477155,1753315856517,-411.541725,0.00021917,2]
[374477156,1753315856527,-411.541725,0.00021917,2]
[374477157,1753315856537,-460.0,0.00021917,2]
[374477158,1753315856547,-729.98,0.00021917,2]
[374477159,1753315856557,-460.0,0.00021917,2]
[374477160,1753315856567,-460.0,0.00021917,2]
[374477161,1753315856577,-460.0,0.00021917,2]
[374477162,1753315856586,-624.26,0.00021917,2]
[374477163,1753315856595,-460.0,0.00021917,2]
[374477164,1753315856604,-460.0,0.00021917,2]
[374477165,1753315856614,-541.16,0.00021917,2]
[374477166,1753315856623,-967.78,0.00021917,2]
[374477167,1753315856633,-460.0,0.00021917,2]
[374477168,1753315856643,-460.0,0.00021917,2]
[374477169,1753315856651,-460.0,0.00021917,2]
[374477170,1753315856661,-356.61932762,0.00021917,2]
[374477171,1753315856678,-103.38067238,0.00021917,2]
[374477172,1753315856688,-460.0,0.00021917,2]
[374477173,1753315856698,-460.0,0.00021917,2]
[374477174,1753315856707,-591.07,0.00021917,2]
[374477175,1753315856717,-460.0,0.00021917,2]
[374477176,1753315856726,-344.96,0.00021917,2]
[374477177,1753315856735,-460.0,0.00021917,2]
[374477178,1753315856745,-205.68932762,0.00021917,2]
[374477179,1753315856766,-413.2669033,0.00019178,2]
[374477180,1753315856811,-46.7330967,0.00019178,2]
[374477181,1753315856821,-411.23935494,0.00019178,2]
[374477182,1753315856833,-48.76064506,0.00019178,2]
[374477183,1753315856842,-460.0,0.00019452,2]
[374477184,1753315856851,-460.0,0.00019726,2]
[374477185,1753315856863,-177.82975282,0.0002,2]
[374477186,1753315856874,-282.17024718,0.0002,2]
[374477187,1753315856884,-63.82412808,0.00020273,2]
[374477188,1753315856899,-196.56174792,0.00020273,2]
[374477189,1753315856989,-460.0,0.00020273,2]
[374477190,1753315856999,-254.31067238,0.00021917,2]
[374477191,1753315857010,-501.96,0.00021917,2]
[374477192,1753315857019,-42.65486387,0.00021917,2]
[374477193,1753315857031,-417.34513613,0.00021917,2]
[374477194,1753315857040,-1169.44,0.00021917,2]
[374477195,1753315857051,-460.0,0.00021917,2]
[374477196,1753315857059,-356.83087753,0.00021917,2]
[374477197,1753315857069,-460.0,0.00021917,2]
[374477198,1753315857077,-460.0,0.00021917,2]
[374477199,1753315857089,-3248.67,0.00021917,2]
[374477200,1753315857098,-460.0,0.00021917,2]
[374477201,1753315857108,-579.41,0.00021917,2]
[374477202,1753315857117,-1597.65979221,0.00021917,2]
[374477203,1753315857172,-460.0,0.00020547,2]
[374477204,1753315857182,-460.0,0.00020821,2]
[374477205,1753315857191,-1912.20020779,0.00021917,2]
[374477206,1753315857200,-1815.77,0.00021917,2]
[374477207,1753315857210,-460.0,0.00021917,2]
[374477208,1753315857219,-460.0,0.00021917,2]
[374477209,1753315857228,-460.0,0.00021917,2]
[374477210,1753315857238,-606.49,0.00021917,2]
[374477211,1753315857247,-460.0,0.00021917,2]
[374477212,1753315857257,-460.0,0.00021917,2]
[374477213,1753315857266,-645.58,0.00021917,2]
[374477214,1753315857276,-1430.55,0.00021917,2]
[374477215,1753315857285,-1596.33,0.00021917,2]
[374477216,1753315857295,-460.0,0.00021917,2]
[374477217,1753315857304,-243.02,0.00021917,2]
[374477218,1753315857314,-151.0,0.00021917,2]
[374477219,1753315857324,-151.0,0.00021917,2]
[374477220,1753315857333,-151.0,0.00021917,2]
[374477221,1753315857343,-151.0,0.00021917,2]
[374477222,1753315857352,-460.0,0.00021917,2]
[374477223,1753315857362,-460.0,0.00021917,2]
[374477224,1753315857371,-1015.54,0.00021917,2]
[374477225,1753315857380,-460.0,0.00021917,2]
[374477226,1753315857390,-1069.89,0.00021917,2]
[374477227,1753315857399,-674.14,0.00021917,2]
[374477228,1753315857408,-151.0,0.00021917,2]
[374477229,1753315857418,-1074.8,0.00021917,2]
[374477230,1753315857427,-460.0,0.00021917,2]
[374477231,1753315857437,-460.0,0.00021917,2]
[374477232,1753315857447,-460.0,0.00021917,2]
[374477233,1753315857456,-1504.83,0.00021917,2]
[374477234,1753315857465,-828.07,0.00021917,2]
[374477235,1753315857475,-217.04482,0.00021918,2]
[374477236,1753315857484,-217.04482,0.00021918,2]
[374477237,1753315857493,-217.04482,0.00021918,2]
[374477238,1753315857503,-217.04482,0.00021918,2]
[374477239,1753315857512,-217.04482,0.00021918,2]
[374477240,1753315857522,-217.04482,0.00021918,2]
[374477241,1753315857532,-1500.0,0.00021988,2]
[374477242,1753315857541,-1534.35,0.00022,7]
[374477243,1753315857551,-3062.4,0.00022,7]
[374477244,1753315857561,-14152.92,0.00022,7]
[374477245,1753315857570,-157.0,0.00022,2]
[374477246,1753315857579,-1000.0,0.00022059,2]
[374477247,1753315857589,-1000.0,0.00022059,2]
[374477248,1753315857598,-1000.0,0.00022059,2]
[374477249,1753315857607,-1000.0,0.00022059,2]
[374477250,1753315857617,-1000.0,0.00022059,2]
[374477251,1753315857635,-300.17482589,0.00022081,2]
[374477252,1753315857653,-5451.73971166,0.00022091,2]
[374477253,1753315857669,-165.576631,0.00022191,7]
[374477254,1753315857686,-165.576631,0.00022191,7]
[374477255,1753315857704,-151.0,0.00022191,7]
[374477256,1753315857721,-254.317335,0.00022191,7]
[374477257,1753315857736,-460.0,0.00022191,2]
[374477258,1753315857752,-460.0,0.00022191,2]
[374477259,1753315857768,-729.98,0.00022191,2]
[374477260,1753315857784,-460.0,0.00022191,2]
[374477261,1753315857798,-460.0,0.00022191,2]
[374477262,1753315857813,-460.0,0.00022191,2]
[374477263,1753315857829,-624.26,0.00022191,2]
[374477264,1753315857848,-460.0,0.00022191,2]
[374477265,1753315857865,-460.0,0.00022191,2]
[374477266,1753315857877,-541.16,0.00022191,2]
[374477267,1753315857891,-967.78,0.00022191,2]
[374477268,1753315857909,-460.0,0.00022191,2]
[374477269,1753315857922,-460.0,0.00022191,2]
[374477270,1753315857937,-460.0,0.00022191,2]
[374477271,1753315857949,-460.0,0.00022191,2]
[374477272,1753315857962,-460.0,0.00022191,2]
[374477273,1753315857976,-591.07,0.00022191,2]
[374477274,1753315857990,-460.0,0.00022191,2]
[374477275,1753315858004,-460.0,0.00022191,2]
[374477276,1753315858020,-501.96,0.00022191,2]
[374477277,1753315858033,-460.0,0.00022191,2]
[374477278,1753315858048,-1169.44,0.00022191,2]
[374477279,1753315858062,-460.0,0.00022191,2]
[374477280,1753315858075,-460.0,0.00022191,2]
[374477281,1753315858093,-477.47,0.00022191,2]
[374477282,1753315858108,-3248.67,0.00022191,2]
[374477283,1753315858122,-460.0,0.00022191,2]
[374477284,1753315858135,-579.41,0.00022191,2]
[374477285,1753315858149,-3509.86,0.00022191,2]
[374477286,1753315858163,-1815.77,0.00022191,2]
[374477287,1753315858177,-697.168234,0.00022191,7]
[374477288,1753315858193,-697.168234,0.00022191,7]
[374477289,1753315858203,-155.697509,0.00022191,7]
[374477290,1753315858212,-460.0,0.00022191,2]
[374477291,1753315858222,-460.0,0.00022191,2]
[374477292,1753315858232,-460.0,0.00022191,2]
[374477293,1753315858241,-606.49,0.00022191,2]
[374477294,1753315858251,-460.0,0.00022191,2]
[374477295,1753315858260,-460.0,0.00022191,2]
[374477296,1753315858270,-645.58,0.00022191,2]
[374477297,1753315858279,-1430.55,0.00022191,2]
[374477298,1753315858288,-1596.33,0.00022191,2]
[374477299,1753315858298,-460.0,0.00022191,2]
[374477300,1753315858308,-460.0,0.00022191,2]
[374477301,1753315858317,-460.0,0.00022191,2]
[374477302,1753315858327,-1015.54,0.00022191,2]
[374477303,1753315858337,-460.0,0.00022191,2]
[374477304,1753315858347,-1069.89,0.00022191,2]
[374477305,1753315858356,-151.0,0.00022191,7]
[374477306,1753315858367,-674.14,0.00022191,2]
[374477307,1753315858376,-1074.8,0.00022191,2]
[374477308,1753315858386,-460.0,0.00022191,2]
[374477309,1753315858395,-460.0,0.00022191,2]
[374477310,1753315858404,-460.0,0.00022191,2]
[374477311,1753315858414,-1504.83,0.00022191,2]
[374477312,1753315858423,-828.07,0.00022191,2]
[374477313,1753315858433,-157.0,0.00022192,7]
[374477314,1753315858442,-25000.0,0.00022441,2]
[374477315,1753315858452,-151.0,0.00022441,2]
[374477316,1753315858461,-151.0,0.00022441,2]
[374477317,1753315858471,-151.0,0.00022441,2]
[374477318,1753315858677,-151.0,0.00022441,2]
[374477319,1753315858695,-151.0,0.00022441,2]
[374477320,1753315858706,-151.0,0.00022441,2]
[374477321,1753315858715,-151.0,0.00022441,2]
[374477322,1753315858724,-151.0,0.00022441,2]
[374477323,1753315858734,-286.5259559,0.00022441,2]
[374477324,1753315858743,-151.0,0.00022441,2]
[374477325,1753315858752,-151.0,0.00022441,2]
[374477326,1753315858762,-151.0,0.00022441,2]
[374477327,1753315858772,-151.0,0.00022441,2]
[374477328,1753315858781,-151.0,0.00022441,2]
[374477329,1753315858791,-151.0,0.00022441,2]
[374477330,1753315858800,-151.0,0.00022441,2]
[374477331,1753315858810,-151.0,0.00022441,2]
[374477332,1753315858819,-151.0,0.00022441,2]
[374477333,1753315858828,-151.0,0.00022441,2]
[374477334,1753315858838,-151.0,0.00022441,2]
[374477335,1753315858847,-151.0,0.00022441,2]
[374477336,1753315858856,-151.0,0.00022441,2]
[374477337,1753315858866,-151.0,0.00022441,2]
[374477338,1753315858875,-151.0,0.00022441,2]
[374477339,1753315858884,-151.0,0.00022441,2]
[374477340,1753315858894,-151.0,0.00022441,2]
[374477341,1753315858903,-151.0,0.00022441,2]
[374477342,1753315858912,-207.20970338,0.00022441,2]
[374477343,1753315858922,-151.0,0.00022441,2]
[374477344,1753315858931,-151.0,0.00022441,2]
[374477345,1753315858942,-151.0,0.00022441,2]
[374477346,1753315858951,-151.0,0.00022441,2]
[374477347,1753315858960,-151.0,0.00022441,2]
[374477348,1753315858970,-151.0,0.00022441,2]
[374477349,1753315858979,-151.0,0.00022441,2]
[374477350,1753315858988,-151.0,0.00022441,2]
[374477351,1753315858998,-151.0,0.00022441,2]
[374477352,1753315859008,-151.0,0.00022441,2]
[374477353,1753315859021,-151.0,0.00022441,2]
[374477354,1753315859030,-151.0,0.00022441,2]
[374477355,1753315859039,-151.0,0.00022441,2]
[374477356,1753315859048,-151.0,0.00022441,2]
[374477357,1753315859059,-151.15248374,0.00022441,2]
[374477358,1753315859068,-151.0,0.00022441,2]
[374477359,1753315859076,-215.0738,0.00022441,2]
[374477360,1753315859086,-151.0,0.00022441,2]
[374477361,1753315859096,-151.0,0.00022441,2]
[374477362,1753315859105,-151.0,0.00022441,2]
[374477363,1753315859115,-151.0,0.00022441,2]
[374477364,1753315859124,-151.0,0.00022441,2]
[374477365,1753315859134,-151.0,0.00022441,2]
[374477366,1753315859143,-151.0,0.00022441,2]
[374477367,1753315859153,-151.0,0.00022441,2]
[374477368,1753315859162,-151.0,0.00022441,2]
[374477369,1753315859171,-151.0,0.00022441,2]
[374477370,1753315859180,-281.10525357,0.00022441,2]
[374477371,1753315859189,-460.0,0.00022465,2]
[374477372,1753315859199,-176.579178,0.00022465,7]
[374477373,1753315859208,-460.0,0.00022465,2]
[374477374,1753315859217,-158.853062,0.00022465,7]
[374477375,1753315859227,-158.853062,0.00022465,7]
[374477376,1753315859236,-151.0,0.00022465,7]
[374477377,1753315859246,-729.98,0.00022465,2]
[374477378,1753315859255,-151.0,0.00022465,7]
[374477379,1753315859264,-460.0,0.00022465,2]
[374477380,1753315859273,-460.0,0.00022465,2]
[374477381,1753315859283,-624.26,0.00022465,2]
[374477382,1753315859292,-460.0,0.00022465,2]
[374477383,1753315859301,-460.0,0.00022465,2]
[374477384,1753315859310,-541.16,0.00022465,2]
[374477385,1753315859320,-967.78,0.00022465,2]
[374477386,1753315859331,-460.0,0.00022465,2]
[374477387,1753315859340,-515.91,0.00022465,2]
[374477388,1753315859351,-460.0,0.00022465,2]
[374477389,1753315859362,-460.0,0.00022465,2]
[374477390,1753315859382,-151.0,0.00022465,7]
[374477391,1753315859392,-591.07,0.00022465,2]
[374477392,1753315859404,-209.554134,0.00022465,7]
[374477393,1753315859415,-177.313592,0.00022465,7]
[374477394,1753315859428,-209.554134,0.00022465,7]
[374477395,1753315859439,-460.0,0.00022465,2]
[374477396,1753315859449,-177.313592,0.00022465,7]
[374477397,1753315859459,-448.49853543,0.00022465,2]
[374477398,1753315859478,-501.96,0.00022465,2]
[374477399,1753315859488,-460.0,0.00022465,2]
[374477400,1753315859499,-151.0,0.00022465,7]
[374477401,1753315859510,-1169.44,0.00022465,2]
[374477402,1753315859521,-460.0,0.00022465,2]
[374477403,1753315859531,-151.0,0.00022465,7]
[374477404,1753315859541,-1665.87,0.00022465,2]
[374477405,1753315859551,-460.0,0.00022465,2]